bitfinex/quotes_ETHUSD_20240718
["timestamp","ask_amount","ask_price","bid_price","bid_amount"]
[1721291467501,2.90073,3447.4,3446.6,2.9014]
[1721291467738,2.90073,3447.4,3446.7,2.90129]
[1721291468425,3.2198077,3447.4,3446.7,2.90129]
[1721291468919,2.90083,3447.3,3446.5,5.80284]
[1721291469119,2.90083,3447.3,3446.6,0.55]
[1721291469320,2.90105,3447.1,3446.3,2.90158]
[1721291469491,2.90105,3447.1,3446.4,2.90156]
[1721291470240,3.71055821,3447.1,3446.4,2.90156]
[1721291470595,2.90117,3446.9,3446.2,2.90174]
[1721291470801,2.90117,3446.9,3446.0,2.9019]
[1721291471399,2.90138,3446.7,3445.8,2.90205]
[1721291471747,2.90155,3446.5,3445.8,2.90205]
[1721291471916,2.90172,3446.3,3445.6,2.90223]
[1721291472448,2.90172,3446.3,3445.5,2.90232]
[1721291472807,2.90176,3446.2,3445.6,0.04169775]
[1721291473264,0.810723,3446.5,3445.6,0.04169775]
[1721291473408,2.90216,3445.7,3445.6,0.04169775]
[1721291473748,2.90216,3445.7,3445.0,2.9027]
[1721291474254,2.90226,3445.6,3445.1,0.04231324]
[1721291474608,3.20299274,3445.6,3444.8,2.90292]
[1721291474934,3.20299274,3445.6,3444.7,2.90297]
[1721291474935,2.90249,3445.4,3444.9,0.04231324]
[1721291475248,6.10530274,3445.6,3444.7,2.90297]
[1721291475406,6.10530274,3445.6,3445.0,0.04231324]
[1721291475407,3.20299274,3445.6,3445.0,0.04231324]
[1721291475610,3.20299274,3445.6,3444.8,2.90292]
[1721291475907,3.20299274,3445.6,3444.9,0.04231324]
[1721291476340,2.90242,3445.4,3444.9,0.04231324]
[1721291477255,0.30073274,3445.6,3444.5,2.90315]
[1721291477468,2.90246,3445.4,3445.0,0.04231324]
[1721291477615,2.90259,3445.2,3444.6,0.55]
[1721291477812,2.90259,3445.2,3444.7,0.04231324]
[1721291478046,3.483095,3445.2,3444.7,0.04231324]
[1721291478247,3.483095,3445.2,3444.5,0.55]
[1721291478550,3.483095,3445.2,3444.8,0.04231324]
[1721291478763,3.483095,3445.2,3444.4,3.45326]
[1721291478946,3.483095,3445.2,3444.9,0.04231324]
[1721291479119,3.5412255,3445.1,3444.4,0.55]
[1721291479317,2.90267,3445.1,3444.5,0.04231324]
[1721291480276,0.30073274,3445.6,3444.5,2.94547324]
[1721291480478,2.90267,3445.1,3444.5,2.94547324]
[1721291480770,2.90267,3445.1,3444.5,0.04231324]
[1721291481771,2.90267,3445.1,3444.5,0.59231324]
[1721291481973,0.05038978,3445.0,3444.5,0.59231324]
[1721291482467,2.95316978,3445.0,3444.5,0.04231324]
[1721291482851,2.95316978,3445.0,3444.4,0.55]
[1721291483028,2.95316978,3445.0,3444.6,0.04268164]
[1721291483230,2.95316978,3445.0,3444.4,3.45326]
[1721291483570,0.05038978,3445.0,3444.5,0.04268164]
[1721291483733,0.05038978,3445.0,3444.5,3.2954288]
[1721291484231,0.05038978,3445.0,3444.5,2.94584164]
[1721291484957,0.30078583,3444.9,3444.5,2.94584164]
[1721291488441,0.30078583,3444.9,3444.5,5.84894164]
[1721291488784,0.30078583,3444.9,3444.6,2.90307]
[1721291489139,0.30078583,3444.9,3444.7,0.04317386]
[1721291491766,0.30078583,3444.9,3444.5,2.90317]
[1721291491962,0.30078583,3444.9,3444.6,0.04317386]
[1721291492266,2.90292,3444.8,3444.6,0.04317386]
[1721291492580,2.90292,3444.8,3444.1,2.90347]
[1721291492879,2.90292,3444.8,3444.2,0.04317386]
[1721291493556,2.90292,3444.8,3444.2,2.94659386]
[1721291495244,0.30078583,3444.9,3444.2,2.94659386]
[1721291495481,3.20362583,3444.9,3444.3,0.58501639]
[1721291496186,3.20362583,3444.9,3444.4,0.04317386]
[1721291496545,3.20362583,3444.9,3444.2,2.90342]
[1721291496747,3.20362583,3444.9,3444.3,0.04317386]
[1721291497345,0.30078583,3444.9,3444.6,2.90309]
[1721291497597,0.30078583,3444.9,3444.7,0.580631]
[1721291497743,0.30078583,3444.9,3444.7,0.62387919]
[1721291497945,0.30078583,3444.9,3444.7,0.04324819]
[1721291502217,0.30078583,3444.9,3444.5,2.90316]
[1721291502370,0.30078583,3444.9,3444.8,0.04322651]
[1721291502571,0.30078583,3444.9,3444.5,2.90316]
[1721291502897,0.30078583,3444.9,3444.8,0.04324819]
[1721291503103,0.30078583,3444.9,3444.5,2.90316]
[1721291503299,0.30078583,3444.9,3444.8,0.04324819]
[1721291503504,0.30078583,3444.9,3444.5,2.90316]
[1721291503667,0.30078583,3444.9,3444.8,0.04324819]
[1721291503873,0.30078583,3444.9,3444.3,3.45328]
[1721291504206,2.90306,3444.7,3444.1,2.9035]
[1721291504405,2.90306,3444.7,3444.4,0.04324819]
[1721291504622,2.90306,3444.7,3444.0,2.90357]
[1721291504623,5.80615,3444.7,3444.0,2.90357]
[1721291504826,5.80615,3444.7,3444.5,0.04324819]
[1721291504827,0.05038756,3444.6,3444.5,0.04324819]
[1721291504975,0.05038756,3444.6,3444.0,2.90357]
[1721291505318,0.05038756,3444.6,3444.5,0.04324819]
[1721291505523,2.90318,3444.5,3443.9,2.90363]
[1721291505717,2.90318,3444.5,3443.6,2.9039]
[1721291505718,6.10692653,3444.5,3443.7,2.90377]
[1721291506216,2.90334,3444.3,3443.5,2.4352]
[1721291506433,2.90334,3444.3,3443.5,5.33915]
[1721291506592,2.90356,3444.1,3443.3,2.90412]
[1721291506780,5.80715,3444.1,3443.3,5.80823]
[1721291507117,5.80715,3444.1,3443.4,2.90408]
[1721291508181,2.90361,3444.0,3443.4,2.90408]
[1721291509681,2.90343,3444.2,3443.5,2.904]
[1721291509897,2.90343,3444.2,3443.5,6.388761]
[1721291510095,2.90356,3444.1,3443.5,3.484761]
[1721291510318,2.90356,3444.1,3443.5,2.90395]
[1721291511224,2.90368,3444.0,3443.3,2.90417]
[1721291511412,5.24236,3444.1,3443.3,2.90417]
[1721291511946,2.90374,3443.9,3443.1,5.36652]
[1721291512103,2.90374,3443.9,3443.1,2.90432]
[1721291512302,2.90382,3443.8,3443.1,2.90432]
[1721291512841,2.3388,3444.1,3443.3,2.90417]
[1721291512842,5.24236,3444.1,3443.3,2.90417]
[1721291513132,0.30050653,3444.5,3443.3,2.90417]
[1721291513133,2.90338,3444.3,3443.3,2.90417]
[1721291513312,2.90354,3444.1,3443.5,2.90402]
[1721291515919,0.30048514,3444.0,3443.5,2.90402]
[1721291516602,0.30048514,3444.0,3443.5,2.90393]
[1721291516798,0.30048514,3444.0,3443.7,2.9038]
[1721291516999,0.30048514,3444.0,3443.8,2.90375]
[1721291517931,0.30048514,3444.0,3443.9,0.04379344]
[1721291521245,0.30048514,3444.0,3443.9,2.94747344]
[1721291522522,0.05038756,3444.6,3444.1,2.9035]
[1721291522715,0.30046516,3444.2,3444.1,2.9035]
[1721291525212,0.35085637,3444.2,3444.1,2.9035]
[1721291525816,0.35085637,3444.2,3443.9,2.90368]
[1721291526420,0.35085637,3444.2,3443.7,2.90382]
[1721291526815,0.35085637,3444.2,3443.9,2.90365]
[1721291528314,0.35085637,3444.2,3443.9,2.90365]
[1721291529413,0.35085637,3444.2,3443.7,2.90384]
[1721291529618,1.50226601,3444.2,3443.5,2.90396]
[1721291529820,4.08031637,3444.2,3443.5,2.90395]
[1721291530865,4.08031637,3444.2,3443.5,2.90394]
[1721291531031,0.35085637,3444.2,3443.6,2.90393]
[1721291532860,0.35085637,3444.2,3443.7,0.04362921]
[1721291533150,0.35085637,3444.2,3443.7,2.94745921]
[1721291534249,1.04919801,3444.2,3443.7,2.94745921]
[1721291535237,0.35085637,3444.2,3443.7,2.94745921]
[1721291535754,3.25428637,3444.2,3443.7,0.04362921]
[1721291537523,0.35085637,3444.2,3443.8,2.90372]
[1721291537757,0.35085637,3444.2,3444.0,2.90353]
[1721291538060,0.05039121,3444.2,3444.1,5.80702]
[1721291538274,2.4887,3445.1,3444.5,2.90317]
[1721291538443,0.30043157,3444.6,3444.5,2.90317]
[1721291538765,2.4887,3445.1,3444.5,2.90317]
[1721291539064,0.30051589,3444.9,3444.5,2.94689836]
[1721291540646,0.30051589,3444.9,3444.5,0.86972836]
[1721291540848,0.30051589,3444.9,3444.8,9.03634]
[1721291541083,0.05037697,3445.9,3445.3,2.90242]
[1721291541243,0.30047604,3445.4,3445.3,3.72842]
[1721291541448,0.05037697,3445.9,3445.4,2.9024]
[1721291541648,0.87472367,3445.9,3445.4,2.9024]
[1721291542082,0.30044926,3445.8,3445.4,2.9024]
[1721291542501,0.30044926,3445.8,3445.5,2.90233]
[1721291546299,0.30044926,3445.8,3444.9,2.90277]
[1721291546464,0.30044926,3445.8,3445.7,2.90216]
[1721291546666,0.30044926,3445.8,3445.7,5.80432]
[1721291547998,0.30044926,3445.8,3445.7,5.84731119]
[1721291551006,0.30044926,3445.8,3445.7,6.60962887]
[1721291551213,0.05037697,3445.9,3445.8,2.90208]
[1721291551418,2.3683,3447.3,3446.8,2.90118]
[1721291551579,0.526896,3447.2,3446.8,2.90118]
[1721291551977,0.30296795,3447.1,3446.9,0.04265679]
[1721291552594,0.30296795,3447.1,3447.0,2.90107]
[1721291553090,0.30296795,3447.1,3447.0,2.94372679]
[1721291554199,0.35350232,3447.1,3447.0,2.94372679]
[1721291555347,0.30296795,3447.1,3447.0,2.94372679]
[1721291557720,0.30296795,3447.1,3447.0,0.04265679]
[1721291558042,0.30296795,3447.1,3446.9,2.90114]
[1721291558347,0.30296795,3447.1,3447.0,0.04231636]
[1721291561766,0.30296795,3447.1,3446.7,2.90126]
[1721291561917,0.30296795,3447.1,3447.0,0.04231636]
[1721291562118,0.30296795,3447.1,3446.8,2.90122]
[1721291562320,0.30296795,3447.1,3447.0,0.04231636]
[1721291562623,0.30296795,3447.1,3447.0,0.04204095]
[1721291564265,0.30296795,3447.1,3446.8,2.90123]
[1721291564560,0.30296795,3447.1,3447.0,0.04204095]
[1721291564733,0.30296795,3447.1,3446.9,2.90115]
[1721291565071,0.30296795,3447.1,3447.0,0.04204095]
[1721291565230,0.35350351,3447.1,3447.0,0.04204095]
[1721291570482,0.67892786,3447.1,3447.0,0.04204095]
[1721291570631,0.67892786,3447.1,3446.4,2.90152]
[1721291570632,3.57990786,3447.1,3446.4,2.90152]
[1721291570822,0.35350351,3447.1,3447.0,0.04197291]
[1721291571018,0.35350351,3447.1,3446.0,2.4231]
[1721291571019,0.35350351,3447.1,3446.6,2.90132]
[1721291571262,0.35350351,3447.1,3446.7,2.94331003]
[1721291571424,0.35350351,3447.1,3447.0,2.90107]
[1721291571637,0.35350351,3447.1,3447.0,6.12956284]
[1721291571861,0.30296795,3447.1,3447.0,6.17157287]
[1721291572066,1e-08,3447.1,3447.0,6.17157287]
[1721291572251,2.90019,3448.1,3447.3,2.90074]
[1721291572451,2.90025,3448.0,3447.5,0.825]
[1721291573129,2.90025,3448.0,3447.6,0.0419296]
[1721291573656,2.90025,3448.0,3447.3,3.72574]
[1721291573856,2.90025,3448.0,3447.7,0.0419296]
[1721291574032,2.90025,3448.0,3447.5,0.825]
[1721291574232,2.90025,3448.0,3447.8,0.0419296]
[1721291574233,2.90031,3447.9,3447.8,0.0419296]
[1721291574472,2.90031,3447.9,3447.4,0.37837521]
[1721291574767,2.95083389,3447.9,3447.8,0.0419296]
[1721291575245,2.95083389,3447.9,3447.4,0.37837521]
[1721291575449,2.95083389,3447.9,3447.8,0.0419296]
[1721291575758,2.95083389,3447.9,3447.4,0.37837521]
[1721291575960,2.95083389,3447.9,3447.8,0.0419296]
[1721291576170,2.95083389,3447.9,3447.4,0.37837521]
[1721291576331,2.95083389,3447.9,3447.8,0.0419296]
[1721291576532,2.95083389,3447.9,3447.4,0.37837521]
[1721291576762,2.95083389,3447.9,3447.8,0.0419296]
[1721291576969,2.95083389,3447.9,3447.3,2.90074]
[1721291577151,2.95083389,3447.9,3447.8,0.0419296]
[1721291577358,2.95083389,3447.9,3447.3,2.90074]
[1721291577534,2.95083389,3447.9,3447.8,0.0419296]
[1721291577731,2.95083389,3447.9,3447.3,2.90074]
[1721291578250,2.95083389,3447.9,3447.4,0.0419296]
[1721291579042,5.85122389,3447.9,3447.4,0.0419296]
[1721291579239,2.90055,3447.7,3447.4,0.0419296]
[1721291579481,2.90065,3447.5,3446.8,2.90124]
[1721291579652,2.90089,3447.3,3446.6,2.90139]
[1721291580176,2.9009,3447.2,3446.6,2.90139]
[1721291580951,2.9009,3447.2,3446.4,2.9015]
[1721291581170,5.2931,3447.2,3446.5,2.90143]
[1721291581365,5.2931,3447.2,3446.6,2.90135]
[1721291581366,2.9009,3447.2,3446.6,2.90135]
[1721291581581,2.90074,3447.4,3446.7,2.90132]
[1721291582246,5.29281,3447.6,3446.9,2.90109]
[1721291582451,5.80088,3447.8,3447.0,2.90101]
[1721291582647,2.90041,3447.8,3447.0,2.90101]
[1721291582851,0.30301918,3447.5,3447.0,2.90101]
[1721291583395,0.30301918,3447.5,3447.1,2.90095]
[1721291583597,0.30301918,3447.5,3447.2,2.9009]
[1721291584066,0.30301918,3447.5,3447.3,2.90081]
[1721291584446,0.30301918,3447.5,3447.4,2.90073]
[1721291585473,0.05052389,3447.9,3447.6,2.90052]
[1721291585985,0.05052389,3447.9,3447.7,2.90047]
[1721291587881,0.05052389,3447.9,3447.5,2.90058]
[1721291588297,0.05052389,3447.9,3447.4,2.90069]
[1721291588450,3.27622004,3447.9,3447.0,2.90103]
[1721291588650,2.95086389,3447.9,3447.2,2.90084]
[1721291588961,2.95086389,3447.9,3447.3,2.90081]
[1721291589486,2.95086389,3447.9,3447.4,2.90072]
[1721291589487,0.05052389,3447.9,3447.4,2.90072]
[1721291590562,0.05052389,3447.9,3447.6,2.90051]
[1721291591079,0.05052389,3447.9,3447.0,2.90103]
[1721291591280,0.05052389,3447.9,3447.5,2.9006]
[1721291591886,0.05052389,3447.9,3447.6,2.90051]
[1721291592692,0.05052389,3447.9,3447.7,0.04045844]
[1721291593583,0.05052389,3447.9,3447.4,2.90073]
[1721291593796,0.05052389,3447.9,3447.8,0.04045844]
[1721291593952,0.05052389,3447.9,3447.4,2.90073]
[1721291594147,0.05052389,3447.9,3446.8,5.1705]
[1721291594148,5.2777,3447.8,3447.2,2.90084]
[1721291595298,5.2777,3447.8,3447.2,3.48103]
[1721291596267,2.3773,3447.8,3447.2,3.48101]
[1721291596469,0.05052389,3447.9,3447.4,2.90072]
[1721291598873,0.05052389,3447.9,3447.2,2.90084]
[1721291599073,0.05052389,3447.9,3447.3,2.90081]
[1721291599275,0.05052389,3447.9,3447.2,2.90084]
[1721291599276,0.05052389,3447.9,3447.4,2.90072]
[1721291603473,0.87497208,3447.8,3447.5,2.90059]
[1721291603798,0.05052389,3447.9,3447.6,0.580125]
[1721291604002,0.87493652,3447.8,3447.5,2.90059]
[1721291604627,0.87493652,3447.8,3447.4,2.90066]
[1721291604628,0.87493652,3447.8,3447.6,2.90053]
[1721291605122,0.87493652,3447.8,3447.4,2.90066]
[1721291605322,0.87493652,3447.8,3447.3,2.90081]
[1721291606216,2.4433,3447.6,3447.1,2.90098]
[1721291606413,0.87493652,3447.5,3447.1,2.90098]
[1721291606788,0.87493652,3447.5,3446.7,2.90124]
[1721291606789,3.20379749,3447.5,3446.7,2.90124]
[1721291607101,0.92561875,3447.4,3446.8,2.90119]
[1721291607288,0.87507549,3447.3,3446.8,2.90119]
[1721291607646,0.87507549,3447.3,3446.3,4.255]
[1721291607647,2.4433,3447.2,3446.3,2.90157]
[1721291607940,2.4433,3447.2,3446.4,0.040477]
[1721291607941,2.90108,3447.0,3446.4,0.040477]
[1721291608082,2.90108,3447.0,3446.1,2.90181]
[1721291608083,0.87507549,3446.9,3446.3,2.90166]
[1721291608294,0.87507549,3446.9,3446.5,0.04030687]
[1721291608528,0.87507549,3446.9,3446.3,2.90166]
[1721291608731,0.87507549,3446.9,3446.6,0.04030687]
[1721291608941,0.87507549,3446.9,3446.3,2.90166]
[1721291609233,3.77651289,3446.8,3446.7,0.04030687]
[1721291609391,3.77651289,3446.8,3446.1,2.90181]
[1721291609392,3.77651289,3446.8,3446.2,2.90174]
[1721291609591,3.77651289,3446.8,3446.1,0.290181]
[1721291609592,2.4125,3446.6,3446.1,0.290181]
[1721291610141,0.87530755,3446.5,3446.2,0.04030687]
[1721291611290,2.4125,3446.6,3446.2,0.04030687]
[1721291612025,2.4125,3446.6,3446.2,2.94203687]
[1721291612188,2.4125,3446.6,3446.3,0.61340379]
[1721291612385,2.4125,3446.6,3446.2,2.94203687]
[1721291612386,2.4125,3446.6,3446.2,0.04030687]
[1721291612613,2.4125,3446.6,3446.1,2.90181]
[1721291612830,2.4125,3446.6,3446.3,0.04030687]
[1721291613000,2.90124,3446.8,3446.1,2.90181]
[1721291613346,0.87531041,3446.7,3446.1,2.90181]
[1721291613547,0.87531041,3446.7,3446.2,2.94203687]
[1721291613857,2.2966,3446.9,3446.2,2.94203687]
[1721291613989,0.87529653,3446.8,3446.4,2.90151]
[1721291614326,5.17024,3447.2,3446.4,2.90151]
[1721291614327,2.90099,3447.1,3446.5,0.04051103]
[1721291614533,0.87522776,3447.0,3446.5,0.04051103]
[1721291614705,3.77630776,3447.0,3446.5,0.04051103]
[1721291615105,0.87522776,3446.9,3446.5,0.04051103]
[1721291616097,0.87525986,3446.8,3446.5,0.04051103]
[1721291616291,0.37763399,3446.8,3446.5,0.04051103]
[1721291616492,0.87527796,3446.7,3446.1,2.90179]
[1721291616712,0.87527796,3446.7,3446.6,0.04072136]
[1721291616928,0.87527796,3446.7,3446.1,2.90179]
[1721291617135,0.30321589,3446.7,3446.6,0.04072136]
[1721291617434,1.17852526,3446.7,3446.1,2.90179]
[1721291617631,1.17852526,3446.7,3446.6,0.04072136]
[1721291617632,2.66811589,3446.7,3446.6,0.04072136]
[1721291617931,3.54341825,3446.7,3446.2,2.90173]
[1721291618231,2.66811589,3446.7,3446.6,0.04072136]
[1721291618386,2.66811589,3446.7,3446.2,2.90173]
[1721291618589,2.66811589,3446.7,3446.6,0.04072136]
[1721291618813,3.54342284,3446.7,3446.2,2.90173]
[1721291619018,2.66811589,3446.7,3446.6,0.04072136]
[1721291619243,2.66811589,3446.7,3446.2,2.90173]
[1721291619450,0.30321589,3446.7,3446.6,0.04072136]
[1721291619910,0.30321589,3446.7,3446.3,2.90166]
[1721291620111,0.30321589,3446.7,3446.6,0.04073993]
[1721291620311,0.30321589,3446.7,3446.4,2.90151]
[1721291620539,0.30321589,3446.7,3446.5,0.580377]
[1721291620720,0.30321589,3446.7,3446.5,0.62111693]
[1721291621421,0.30321589,3446.7,3446.5,0.04073993]
[1721291622139,0.30321589,3446.7,3446.1,2.90179]
[1721291622315,0.30321589,3446.7,3446.6,0.04071518]
[1721291622510,0.30321589,3446.7,3446.1,5.80355]
[1721291622756,0.30321589,3446.7,3446.6,0.04071518]
[1721291622913,0.30321589,3446.7,3446.1,5.80355]
[1721291623118,0.30321589,3446.7,3446.6,0.04071518]
[1721291623318,0.30321589,3446.7,3446.1,2.90176]
[1721291623661,0.30321589,3446.7,3446.6,0.04071518]
[1721291623845,2.90152,3446.5,3445.9,2.90196]
[1721291624167,5.34702,3446.5,3445.9,2.90196]
[1721291625218,5.34702,3446.5,3445.9,3.482371]
[1721291626152,2.90152,3446.5,3445.9,3.482371]
[1721291626517,2.90179,3446.2,3445.5,2.90228]
[1721291627120,0.05054937,3446.1,3445.7,2.90215]
[1721291627536,0.353741,3446.1,3445.7,2.90215]
[1721291627946,0.353741,3446.1,3445.7,5.80426]
[1721291628328,0.353741,3446.1,3445.8,0.580426]
[1721291629251,0.353741,3446.1,3445.7,2.90216]
[1721291633771,0.353741,3446.1,3445.5,2.90229]
[1721291633772,0.353741,3446.1,3445.5,2.90226]
[1721291634168,0.353741,3446.1,3445.6,2.90219]
[1721291635389,0.353741,3446.1,3445.2,2.90253]
[1721291635390,5.34166,3445.9,3445.2,2.90253]
[1721291635671,2.90208,3445.8,3445.2,3.483054]
[1721291637354,2.90208,3445.8,3445.2,2.90253]
[1721291637748,0.30315397,3445.7,3445.3,0.04113366]
[1721291638071,3.20532397,3445.7,3444.9,2.90283]
[1721291638284,2.90235,3445.5,3445.4,0.04113366]
[1721291638492,8.7075754,3445.5,3445.4,0.04113366]
[1721291638633,2.90256,3445.3,3444.6,2.90309]
[1721291639063,5.80514,3445.3,3444.7,0.04124941]
[1721291639580,2.90267,3445.1,3444.7,0.04124941]
[1721291639883,2.90267,3445.1,3444.4,2.9032]
[1721291640177,2.3263,3444.9,3444.2,2.9034]
[1721291640383,2.3263,3444.9,3444.5,0.03999594]
[1721291640592,2.3263,3444.9,3444.3,2.90329]
[1721291640875,2.3263,3444.9,3444.6,0.04004239]
[1721291641085,2.3263,3444.9,3444.4,2.90326]
[1721291641247,2.3263,3444.9,3444.4,3.483915]
[1721291641456,5.18695,3445.2,3444.5,0.04004239]
[1721291641654,2.9027,3445.1,3444.5,0.04004239]
[1721291644195,2.90297,3444.8,3444.5,0.04004239]
[1721291644348,0.290297,3444.7,3444.1,2.90344]
[1721291644554,2.90297,3444.8,3444.6,0.04010123]
[1721291644762,2.90297,3444.8,3444.1,2.90344]
[1721291645111,2.90297,3444.8,3444.7,0.04010123]
[1721291645293,2.90297,3444.8,3444.1,2.90344]
[1721291645485,2.90301,3444.7,3444.1,2.90344]
[1721291645692,2.90301,3444.7,3444.2,0.04010123]
[1721291646253,2.90279,3445.0,3444.2,2.94352123]
[1721291647500,2.90293,3444.8,3444.2,2.94352123]
[1721291648060,0.30316933,3444.7,3444.2,2.94352123]
[1721291648511,0.30316933,3444.7,3444.3,2.90333]
[1721291648671,0.30316933,3444.7,3444.4,0.50902952]
[1721291648867,0.30316933,3444.7,3444.4,0.54917721]
[1721291650410,0.30316933,3444.7,3444.4,0.04014769]
[1721291650707,0.30316933,3444.7,3444.2,2.90341]
[1721291650914,0.30316933,3444.7,3444.5,0.04014769]
[1721291651213,0.30316933,3444.7,3444.0,2.90356]
[1721291651365,2.90314,3444.6,3444.0,2.90356]
[1721291651962,5.8063,3444.6,3444.0,2.90356]
[1721291652764,5.8063,3444.6,3444.1,0.04042635]
[1721291652765,2.90318,3444.5,3444.1,0.04042635]
[1721291653267,2.90333,3444.4,3444.1,0.04042635]
[1721291653464,2.90343,3444.2,3444.1,0.04042635]
[1721291653982,2.90343,3444.2,3443.4,2.90403]
[1721291654305,2.90356,3444.1,3443.4,2.90403]
[1721291654880,2.90366,3444.0,3443.3,2.4481]
[1721291655187,5.80734,3444.0,3443.3,2.4481]
[1721291655376,2.90369,3443.9,3443.3,5.35228]
[1721291655587,2.90369,3443.9,3443.3,2.90418]
[1721291655973,2.9036,3444.0,3443.3,2.90418]
[1721291656308,2.90347,3444.2,3443.4,2.90405]
[1721291656490,2.90357,3444.1,3443.6,2.3568]
[1721291656891,5.29743,3444.5,3443.6,2.3568]
[1721291657208,2.90334,3444.3,3443.7,2.90383]
[1721291658265,2.90322,3444.5,3443.7,2.90383]
[1721291658266,5.80646,3444.5,3443.7,2.90383]
[1721291658470,0.30303815,3444.2,3443.8,2.90376]
[1721291658779,0.30303815,3444.2,3443.9,0.50892352]
[1721291658991,0.30303815,3444.2,3443.9,3.41260352]
[1721291660175,0.30303815,3444.2,3444.1,2.90351]
[1721291660381,2.95343806,3444.9,3444.3,2.90327]
[1721291660621,2.95343806,3444.9,3444.4,0.290327]
[1721291660793,0.30309739,3444.5,3444.4,3.193577]
[1721291663297,0.26706859,3444.5,3444.4,3.193577]
[1721291664009,0.05056806,3444.9,3444.5,2.90315]
[1721291665138,0.05056806,3444.9,3444.6,2.90308]
[1721291666425,0.05056806,3444.9,3444.7,0.30938817]
[1721291666785,0.05056806,3444.9,3444.8,5.80584]
[1721291667047,0.05056806,3444.9,3444.8,11.15011439]
[1721291667206,2.2563,3445.9,3445.4,2.90238]
[1721291667531,0.05055481,3445.7,3445.4,2.90238]
[1721291667889,0.05055481,3445.7,3445.5,0.04033657]
[1721291668811,0.05055481,3445.7,3445.2,2.90256]
[1721291669122,0.05055481,3445.7,3445.3,0.04033657]
[1721291669289,0.63602429,3445.7,3445.3,0.04033657]
[1721291669489,2.4673,3445.6,3445.0,2.90269]
[1721291669723,2.4673,3445.6,3445.4,0.0403118]
[1721291669926,2.4673,3445.6,3444.9,0.30937021]
[1721291669927,2.90255,3445.3,3444.9,0.30937021]
[1721291670097,2.90261,3445.2,3444.9,0.30937021]
[1721291670293,3.483186,3445.1,3445.0,0.0403118]
[1721291673033,5.907786,3445.1,3445.0,0.0403118]
[1721291673338,2.90275,3445.0,3444.9,0.30937021]
[1721291674007,2.90275,3445.0,3444.9,0.34823298]
[1721291674638,3.005116,3445.1,3444.9,0.34823298]
[1721291676201,0.5907706,3445.0,3444.9,0.34823298]
[1721291677932,1.46659669,3445.0,3444.9,0.34823298]
[1721291678230,0.87582191,3445.0,3444.9,0.34823298]
[1721291679952,0.87582827,3445.0,3444.9,0.34823298]
[1721291682736,0.87582827,3445.0,3444.9,0.03886277]
[1721291682939,0.87582827,3445.0,3444.6,2.90307]
[1721291683216,0.87582303,3444.9,3444.6,2.90307]
[1721291683545,0.87582303,3444.8,3444.6,2.90307]
[1721291683715,0.87582303,3444.7,3444.6,2.90307]
[1721291683917,2.90285,3444.9,3444.2,2.90336]
[1721291684111,0.87582303,3444.8,3444.2,2.90336]
[1721291684415,0.87582303,3444.8,3444.2,2.90337]
[1721291684631,0.87582303,3444.8,3443.8,2.90375]
[1721291684849,0.24246,3445.0,3443.8,2.90375]
[1721291684850,2.2534,3444.4,3443.8,2.90375]
[1721291685016,0.87582303,3444.3,3443.8,2.90375]
[1721291685211,3.77916303,3444.3,3443.6,2.90386]
[1721291685436,0.87582303,3444.2,3443.6,2.90386]
[1721291685823,0.87582303,3444.2,3443.6,5.80772]
[1721291686148,0.87600808,3444.1,3443.6,2.90386]
[1721291686337,0.87600808,3444.0,3443.6,2.90386]
[1721291686555,5.15666,3444.4,3443.6,2.90386]
[1721291686556,2.90343,3444.2,3443.6,2.90386]
[1721291686755,0.87601179,3444.1,3443.6,2.90386]
[1721291686943,0.87601179,3444.1,3443.6,5.80774]
[1721291687141,0.87601179,3444.1,3443.7,2.90382]
[1721291687361,0.87601179,3444.0,3443.7,2.90382]
[1721291687561,8.06,3444.4,3443.7,2.90382]
[1721291687562,5.15666,3444.4,3443.7,2.90382]
[1721291687727,0.05058411,3444.0,3443.7,2.90382]
[1721291687933,0.05058411,3444.0,3443.6,2.90386]
[1721291688266,0.05058411,3444.0,3443.6,3.440326]
[1721291690833,0.05058411,3444.0,3443.4,5.80813]
[1721291691034,0.05058411,3444.0,3443.4,2.90403]
[1721291691230,0.05058411,3444.0,3443.4,5.80806]
[1721291691448,0.05058411,3444.0,3443.5,2.90399]
[1721291693837,3.77971076,3443.9,3443.2,2.90425]
[1721291694042,3.77980076,3443.8,3443.2,2.90425]
[1721291694241,0.87602076,3443.7,3443.2,2.90425]
[1721291694442,2.90378,3443.8,3443.2,2.90425]
[1721291694663,3.77998014,3443.7,3443.0,2.90439]
[1721291694978,0.87613833,3443.6,3443.1,2.94260436]
[1721291695281,2.90394,3443.6,3443.1,0.03825436]
[1721291695488,0.87622641,3443.5,3443.1,0.03825436]
[1721291695686,0.87622641,3443.5,3442.9,2.90445]
[1721291696271,0.87622641,3443.5,3443.0,0.03825436]
[1721291696272,2.90415,3443.4,3443.0,0.03825436]
[1721291696474,2.9042,3443.3,3443.0,0.03825436]
[1721291696775,2.90437,3443.1,3442.5,2.90478]
[1721291697080,2.90437,3443.1,3442.6,0.03825436]
[1721291697839,2.90437,3443.1,3442.5,2.90478]
[1721291698038,2.90437,3443.1,3442.6,0.03825436]
[1721291698685,2.90437,3443.1,3442.4,2.90494]
[1721291698847,2.90437,3443.1,3442.7,0.03825436]
[1721291699178,2.90437,3443.1,3442.4,2.90494]
[1721291699657,2.90437,3443.1,3442.5,0.03825436]
[1721291700040,3.725146,3443.1,3442.5,0.03825436]
[1721291700241,2.90453,3442.9,3442.5,0.03825436]
[1721291700550,2.90453,3442.9,3442.1,2.90513]
[1721291700755,2.90472,3442.7,3442.1,2.90513]
[1721291701278,2.90463,3442.8,3442.2,2.94336436]
[1721291701498,2.90453,3442.9,3442.2,3.5282138]
[1721291701660,2.90462,3442.8,3442.2,3.5282138]
[1721291702260,2.90462,3442.8,3442.2,2.94336436]
[1721291703288,2.90455,3442.9,3442.2,2.94336436]
[1721291703789,2.90455,3442.9,3442.3,2.90502]
[1721291703955,2.90439,3443.1,3442.3,2.90502]
[1721291703956,5.80881,3443.1,3442.3,2.90502]
[1721291704158,2.90444,3443.0,3442.4,0.03825436]
[1721291704695,2.3992,3443.2,3442.4,0.03825436]
[1721291704696,2.3992,3443.2,3442.4,2.94318436]